bitfinex/quotes_SOLUSD_20240616
["timestamp","ask_amount","ask_price","bid_price","bid_amount"]
[1718505131878,5.62,144.46,144.41,5.62]
[1718505133864,5.62,144.45,144.4,5.62]
[1718505135288,5.62,144.46,144.4,5.62]
[1718505135790,5.62,144.45,144.4,5.62]
[1718505136987,5.62,144.46,144.4,5.62]
[1718505139293,5.62,144.45,144.4,5.62]
[1718505140663,5.62,144.45,144.39,15.7373]
[1718505140863,5.62,144.44,144.4,20.0]
[1718505141068,5.62,144.44,144.39,15.7373]
[1718505142288,5.62,144.43,144.38,11.7927]
[1718505142589,5.62,144.43,144.39,20.0]
[1718505143476,5.62,144.43,144.42,2.5619]
[1718505143661,7.6842,144.45,144.43,2.5617]
[1718505143865,5.62,144.44,144.43,2.5617]
[1718505144269,0.17,144.45,144.44,2.5616]
[1718505144469,6.3,144.45,144.44,2.5616]
[1718505144975,13.9843,144.45,144.43,2.5616]
[1718505145175,5.62,144.44,144.43,2.5616]
[1718505145703,31.5763,144.44,144.42,2.5619]
[1718505145877,5.62,144.43,144.41,2.5619]
[1718505146070,25.6163,144.44,144.42,2.5619]
[1718505146270,5.62,144.43,144.41,2.5619]
[1718505146470,5.62,144.42,144.41,2.5619]
[1718505154198,22.92401471,144.45,144.44,2.5616]
[1718505154410,28.54401471,144.45,144.44,2.5616]
[1718505155677,2.5616,144.44,144.38,5.62]
[1718505155909,5.62,144.43,144.38,5.62]
[1718505156081,5.62,144.42,144.37,5.62]
[1718505156788,5.62,144.42,144.36,16.1995]
[1718505156979,5.62,144.42,144.37,25.62]
[1718505157382,5.62,144.42,144.41,2.5621]
[1718505157791,48.53871471,144.45,144.37,25.62]
[1718505158012,30.60861471,144.45,144.43,2.5617]
[1718505158206,5.62,144.44,144.43,2.5617]
[1718505159510,7.19081471,144.45,144.44,2.5616]
[1718505159718,12.81081471,144.45,144.44,2.5616]
[1718505160718,15.37221471,144.45,144.43,2.5616]
[1718505160917,5.62,144.44,144.43,2.5616]
[1718505164814,2.5618,144.43,144.41,2.562]
[1718505165010,5.62,144.42,144.41,2.562]
[1718505165920,7.6851,144.44,144.42,2.5618]
[1718505166101,7.6845,144.45,144.43,2.5617]
[1718505166303,5.62,144.44,144.43,2.5617]
[1718505166796,7.6845,144.45,144.43,2.5617]
[1718505167011,5.62,144.44,144.43,2.5617]
[1718505169026,8.1816,144.44,144.42,2.5618]
[1718505169224,5.62,144.43,144.42,2.5618]
[1718505170437,5.62,144.43,144.37,25.62]
[1718505170629,5.62,144.43,144.42,2.5619]
[1718505171013,8.1817,144.43,144.41,2.562]
[1718505171206,5.62,144.42,144.41,2.562]
[1718505174828,5.62,144.42,144.41,2.5621]
[1718505175127,8.1819,144.42,144.4,2.5621]
[1718505175329,5.62,144.41,144.4,2.5621]
[1718505176028,5.62,144.42,144.41,2.562]
[1718505178128,7.6852,144.44,144.42,2.5619]
[1718505178452,5.62,144.43,144.42,2.5619]
[1718505179326,7.6852,144.44,144.42,2.5619]
[1718505179638,5.62,144.43,144.42,2.5619]
[1718505180640,5.62,144.43,144.41,2.562]
[1718505181844,8.1817,144.43,144.41,2.562]
[1718505182958,2.5617,144.43,144.41,2.562]
[1718505183252,23.7322,144.46,144.36,16.1995]
[1718505183535,27.6842,144.45,144.43,2.5616]
[1718505183732,5.62,144.44,144.43,2.5616]
[1718505184153,25.6131,144.46,144.44,2.5616]
[1718505184353,8.1814,144.45,144.43,2.5616]
[1718505184641,5.62,144.44,144.43,2.5616]
[1718505185437,2.5614,144.45,144.43,2.5616]
[1718505185650,5.62,144.44,144.43,2.5616]
[1718505187221,8.1816,144.44,144.42,2.5618]
[1718505187545,5.62,144.43,144.42,2.5618]
[1718505187964,13.3053,144.43,144.41,2.5621]
[1718505188335,5.62,144.42,144.41,2.5621]
[1718505188537,7.6867,144.41,144.39,2.5624]
[1718505188763,5.62,144.4,144.39,2.5624]
[1718505189061,5.62,144.4,144.39,2.5625]
[1718505191246,5.62,144.4,144.36,16.1995]
[1718505191247,5.62,144.41,144.4,2.5623]
[1718505195043,13.3049,144.44,144.42,2.5619]
[1718505195251,20.9897,144.44,144.41,2.5619]
[1718505195470,2.5617,144.43,144.38,5.62]
[1718505195645,2.5617,144.43,144.41,2.562]
[1718505196254,8.1817,144.43,144.41,2.562]
[1718505196658,2.5617,144.44,144.42,2.5619]
[1718505196838,5.62,144.43,144.37,5.62]
[1718505197155,5.62,144.43,144.42,2.5619]
[1718505198265,8.1818,144.43,144.41,2.562]
[1718505199336,5.62,144.43,144.42,2.5619]
[1718505200356,8.1817,144.43,144.41,2.5619]
[1718505202163,5.62,144.43,144.42,2.5619]
[1718505205167,7.6849,144.44,144.42,2.5619]
[1718505205353,2.5617,144.44,144.42,2.5619]
[1718505205567,5.62,144.43,144.42,2.5619]
[1718505208038,13.3054,144.43,144.41,2.562]
[1718505208237,8.1818,144.43,144.41,2.562]
[1718505208461,13.3054,144.43,144.41,2.562]
[1718505208778,5.62,144.42,144.41,2.562]
[1718505209743,8.1818,144.43,144.41,2.562]
[1718505209964,8.1818,144.43,144.42,2.5619]
[1718505210642,8.1818,144.43,144.41,2.5619]
[1718505211971,13.3054,144.43,144.41,2.5619]
[1718505213550,13.3058,144.42,144.4,2.5621]
[1718505213762,5.62,144.41,144.4,2.5621]
[1718505214072,7.6858,144.42,144.4,2.5621]
[1718505214281,5.62,144.41,144.4,2.5621]
[1718505218774,15.3709,144.43,144.41,2.5621]
[1718505218976,5.62,144.42,144.41,2.5621]
[1718505219154,15.3709,144.43,144.41,2.5621]
[1718505219355,7.685,144.44,144.42,2.5619]
[1718505219557,5.62,144.43,144.42,2.5619]
[1718505220456,8.1818,144.43,144.41,2.562]
[1718505220657,5.62,144.42,144.41,2.562]
[1718505223075,2.5617,144.44,144.36,21.8195]
[1718505223260,7.18556923,144.45,144.44,2.5616]
[1718505223579,12.80556923,144.45,144.44,2.5616]
[1718505225184,7.18556923,144.45,144.44,2.5616]
[1718505225555,2.5611,144.47,144.45,2.5613]
[1718505225754,8.1811,144.47,144.45,2.5613]
[1718505227586,8.1813,144.46,144.41,5.62]
[1718505227783,13.3038,144.46,144.41,5.62]
[1718505228281,13.3038,144.46,144.4,21.4042]
[1718505229387,13.3038,144.46,144.44,2.5615]
[1718505230365,8.1815,144.45,144.43,2.5616]
[1718505231888,5.62,144.45,144.44,2.5616]
[1718505241811,25.6117,144.47,144.4,15.7842]
[1718505241988,22.7193971,144.48,144.4,21.4042]
[1718505242377,5.62,144.46,144.41,5.62]
[1718505244500,5.62,144.46,144.4,21.4042]
[1718505244700,8.1812,144.46,144.4,21.4042]
[1718505245385,5.62,144.45,144.4,15.7842]
[1718505246100,5.62,144.46,144.4,21.4042]
[1718505246803,5.62,144.45,144.4,21.4042]
[1718505250408,5.62,144.45,144.4,15.7842]
[1718505250705,5.62,144.44,144.4,15.7842]
[1718505250907,7.3537971,144.48,144.4,21.4042]
[1718505251208,5.62,144.47,144.41,5.62]
[1718505251580,8.1811,144.47,144.41,5.62]
[1718505251985,8.1811,144.47,144.45,2.5612]
[1718505252892,20.9864,144.47,144.45,2.5612]
[1718505253200,5.62,144.46,144.45,2.5612]
[1718505253577,13.3038,144.46,144.4,15.7842]
[1718505253813,13.3038,144.46,144.4,21.4042]
[1718505255227,5.1229,144.45,144.4,15.7842]
[1718505255400,8.1818,144.43,144.37,15.5347]
[1718505255708,5.62,144.43,144.38,25.62]
[1718505255911,5.62,144.41,144.38,20.0]
[1718505256095,5.62,144.41,144.37,15.5347]
[1718505256278,5.62,144.41,144.4,2.5623]
[1718505257820,5.62,144.42,144.41,2.562]
[1718505258302,5.62,144.43,144.42,2.5619]
[1718505260820,8.1817,144.43,144.42,2.5619]
[1718505261610,8.1817,144.43,144.41,2.5619]
[1718505261808,5.62,144.42,144.41,2.5619]
[1718505262122,5.62,144.43,144.42,2.5618]
[1718505262294,5.62,144.43,144.37,21.1547]
[1718505262295,15.0701716,144.45,144.43,2.5616]
[1718505262493,5.62,144.44,144.43,2.5616]
[1718505263611,7.6838,144.46,144.44,2.5616]
[1718505263817,5.62,144.45,144.44,2.5616]
[1718505264387,8.1814,144.45,144.44,2.5616]
[1718505265292,8.1814,144.45,144.43,2.5616]
[1718505265494,5.62,144.44,144.43,2.5616]
[1718505266290,8.1816,144.44,144.42,2.5618]
[1718505266997,5.62,144.44,144.43,2.5617]
[1718505269099,2.5614,144.45,144.43,2.5617]
[1718505270038,7.6842,144.45,144.43,2.5617]
[1718505270931,15.3685,144.45,144.43,2.5617]
[1718505271992,2.5616,144.44,144.43,2.5617]
[1718505272193,2.5616,144.44,144.42,2.5618]
[1718505272705,7.6849,144.44,144.42,2.5618]
[1718505273229,2.5616,144.44,144.42,2.5618]
[1718505274213,5.62,144.46,144.44,2.5615]
[1718505274214,7.6838,144.46,144.44,2.5615]
[1718505274420,2.5613,144.46,144.45,2.5614]
[1718505274722,2.5612,144.46,144.45,2.5614]
[1718505275034,2.5612,144.46,144.44,2.5614]
[1718505276534,2.5612,144.46,144.45,2.5614]
[1718505277733,2.5612,144.46,144.44,2.5614]
[1718505278231,2.5612,144.46,144.45,2.5614]
[1718505278629,23.0505,144.47,144.39,6.042]
[1718505278630,22.29796853,144.51,144.43,15.2022]
[1718505278930,2.5607,144.49,144.48,2.5608]
[1718505279304,2.5607,144.49,144.47,2.5609]
[1718505279727,7.6821,144.49,144.47,2.5609]
[1718505281035,15.3643,144.49,144.47,2.5609]
[1718505281938,7.6821,144.49,144.47,2.5609]
[1718505282347,2.5607,144.49,144.47,2.5609]
[1718505283851,8.1807,144.49,144.47,2.5609]
[1718505285242,8.1807,144.49,144.44,5.62]
[1718505285565,5.62,144.49,144.44,5.62]
[1718505286651,7.682,144.5,144.44,5.62]
[1718505286945,5.62,144.49,144.44,5.62]
[1718505287367,13.302,144.5,144.44,5.62]
[1718505287822,8.1807,144.5,144.44,5.62]
[1718505288254,13.3018,144.5,144.44,5.62]
[1718505289157,20.9834,144.5,144.44,5.62]
[1718505289969,5.62,144.49,144.44,5.62]
[1718505291373,13.3022,144.49,144.43,15.2022]
[1718505291668,8.1809,144.48,144.43,15.2022]
[1718505291967,5.62,144.46,144.41,5.62]
[1718505292169,5.62,144.46,144.42,20.0]
[1718505292778,8.181,144.47,144.42,20.0]
[1718505293279,5.62,144.46,144.42,20.0]
[1718505293574,20.4863,144.49,144.42,20.0]
[1718505293759,5.62,144.47,144.42,25.62]
[1718505294861,5.62,144.47,144.42,20.0]
[1718505297583,25.6073,144.49,144.42,20.0]
[1718505297787,7.6822,144.49,144.42,25.62]
[1718505297958,5.62,144.48,144.43,5.62]
[1718505298376,5.62,144.49,144.43,5.62]
[1718505299478,8.1807,144.49,144.43,5.62]
[1718505300381,0.68,144.5,144.44,5.62]
[1718505300551,7.8511,144.51,144.45,5.62]
[1718505300890,13.3011,144.51,144.45,5.62]
[1718505301079,8.1804,144.51,144.45,5.62]
[1718505301381,13.3011,144.51,144.45,5.62]
[1718505301550,20.9822,144.51,144.45,5.62]
[1718505301751,2.5605,144.5,144.45,5.62]
[1718505302052,8.1805,144.5,144.45,5.62]
[1718505302288,2.5605,144.5,144.45,5.62]
[1718505302477,8.1805,144.5,144.45,5.62]
[1718505302780,5.62,144.5,144.45,5.62]
[1718505303455,8.1805,144.51,144.46,5.62]
[1718505304278,5.62,144.51,144.46,5.62]
[1718505304489,8.1804,144.51,144.46,5.62]
[1718505304866,13.3011,144.51,144.46,5.62]
[1718505305166,7.6811,144.51,144.46,5.62]
[1718505305365,13.3011,144.51,144.46,5.62]
[1718505306992,2.5604,144.51,144.46,5.62]
[1718505307169,8.1804,144.51,144.46,5.62]
[1718505308192,13.3011,144.51,144.46,5.62]
[1718505308393,5.62,144.51,144.46,5.62]
[1718505308562,8.1803,144.51,144.46,5.62]
[1718505310170,2.5603,144.52,144.46,5.62]
[1718505310365,8.1801,144.53,144.48,5.62]
[1718505310572,7.6801,144.53,144.48,5.62]
[1718505310766,2.5601,144.53,144.48,5.62]
[1718505312590,7.6801,144.53,144.48,5.62]
[1718505313592,2.5598,144.55,144.49,5.62]
[1718505313798,31.2154,144.56,144.5,5.62]
[1718505314369,20.9773,144.56,144.5,5.62]
[1718505314675,23.0358,144.56,144.5,5.62]
[1718505314881,31.2154,144.56,144.5,5.62]
[1718505315618,5.1188,144.57,144.5,5.62]
[1718505315792,2.5596,144.55,144.51,5.62]
[1718505316597,2.5596,144.55,144.5,5.62]
[1718505319380,31.2151,144.56,144.5,5.62]
[1718505319584,23.0342,144.57,144.51,5.62]
[1718505319777,13.2982,144.57,144.51,5.62]
[1718505319974,20.9761,144.57,144.51,5.62]
[1718505320799,2.5594,144.56,144.51,5.62]
[1718505321907,31.2133,144.57,144.51,5.62]
[1718505322274,2.5594,144.56,144.51,5.62]
[1718505322805,31.2133,144.57,144.51,5.62]
[1718505323006,2.5594,144.56,144.51,5.62]
[1718505323520,2.5596,144.55,144.51,5.62]
[1718505324374,31.215,144.56,144.51,5.62]
[1718505325494,8.1796,144.56,144.51,5.62]
[1718505326376,31.2137,144.57,144.51,5.62]
[1718505326810,13.2982,144.57,144.51,5.62]
[1718505327325,7.6782,144.57,144.51,5.62]
[1718505327623,13.2982,144.57,144.51,5.62]
[1718505327823,8.1794,144.57,144.51,5.62]
[1718505328709,13.298,144.57,144.51,5.62]
[1718505329603,13.298,144.57,144.48,12.0524]
[1718505329814,13.298,144.57,144.49,0.51]
[1718505330648,20.9759,144.57,144.49,0.51]
[1718505330932,2.5595,144.56,144.49,0.51]
[1718505331097,31.2132,144.57,144.49,0.51]
[1718505331293,25.5921,144.58,144.49,0.51]
[1718505331497,2.5593,144.57,144.49,0.51]
[1718505332226,7.6779,144.57,144.49,0.51]
[1718505334024,2.5593,144.57,144.49,0.51]
[1718505334336,2.5591,144.58,144.54,5.62]
[1718505335739,31.21,144.59,144.54,5.62]
[1718505335913,17.9094,144.62,144.56,5.62]
[1718505336236,7.6758,144.61,144.56,5.62]
[1718505337145,15.3516,144.61,144.56,5.62]
[1718505337446,7.6758,144.61,144.56,5.62]
[1718505337618,15.3516,144.61,144.56,5.62]
[1718505338234,7.6763,144.6,144.56,5.62]
[1718505338438,7.6763,144.6,144.55,5.62]
[1718505338619,2.5588,144.6,144.55,5.62]
[1718505338935,28.6477,144.61,144.55,5.62]
[1718505339346,2.5588,144.6,144.55,5.62]
[1718505339843,28.6477,144.61,144.55,5.62]
[1718505340047,31.2064,144.61,144.55,5.62]
[1718505341327,25.5864,144.61,144.55,5.62]
[1718505341529,13.2961,144.61,144.55,5.62]
[1718505341843,8.1787,144.61,144.55,5.62]
[1718505342225,8.1788,144.6,144.54,16.3808]
[1718505342544,5.62,144.59,144.54,16.3808]
[1718505343351,8.1789,144.59,144.54,16.3808]
[1718505343642,5.62,144.59,144.54,16.3808]
[1718505343940,5.62,144.58,144.54,16.3808]
[1718505345340,5.62,144.59,144.54,22.0008]
[1718505345516,5.62,144.6,144.54,22.0008]
[1718505346043,8.1787,144.6,144.54,22.0008]
[1718505347521,23.0282,144.61,144.54,22.0008]
[1718505347746,5.62,144.6,144.55,5.62]
[1718505348044,8.1788,144.6,144.55,5.62]
[1718505349458,2.5588,144.6,144.55,5.62]
[1718505349949,8.1788,144.6,144.55,5.62]
[1718505350652,13.2963,144.6,144.55,5.62]
[1718505350842,13.2963,144.6,144.54,22.0008]
[1718505355252,2.5589,144.59,144.54,22.0008]
[1718505355457,8.1792,144.58,144.54,16.3808]
[1718505355752,13.2974,144.58,144.54,16.3808]
[1718505356453,8.1792,144.58,144.54,16.3808]
[1718505357454,5.62,144.58,144.54,16.3808]
[1718505358254,25.5888,144.6,144.54,16.3808]
[1718505358461,8.1789,144.59,144.54,16.3808]
[1718505360153,5.62,144.59,144.54,16.3808]
[1718505360954,8.1789,144.59,144.54,16.3808]
[1718505362046,5.62,144.59,144.54,16.3808]
[1718505362251,8.1789,144.59,144.54,16.3808]
[1718505362750,5.62,144.56,144.52,6.0248]
[1718505363656,5.62,144.57,144.52,6.0248]
[1718505364150,5.62,144.57,144.52,11.6448]
[1718505366457,5.62,144.57,144.52,6.0248]
[1718505367555,7.6786,144.56,144.52,6.0248]
[1718505367765,5.62,144.56,144.52,6.0248]
[1718505370168,2.5592,144.58,144.52,6.0248]
[1718505370361,5.62,144.56,144.52,6.0248]
[1718505371990,20.00810797,144.6,144.52,6.0248]
[1718505372270,5.62,144.58,144.53,5.62]
[1718505374263,8.1791,144.58,144.52,6.0248]
[1718505374459,8.1791,144.58,144.52,11.6448]
[1718505377045,13.2974,144.58,144.52,11.6448]
[1718505377885,20.9748,144.58,144.52,11.6448]
[1718505378193,2.5593,144.57,144.52,11.6448]
[1718505378357,13.2979,144.57,144.52,11.6448]
[1718505378544,31.2133,144.57,144.52,11.6448]
[1718505378873,28.6539,144.57,144.52,6.0248]
[1718505379077,31.2133,144.57,144.52,6.0248]
[1718505380291,5.62,144.56,144.52,6.0248]
[1718505380877,5.62,144.55,144.52,6.0248]
[1718505382299,5.62,144.55,144.5,15.6106]
[1718505382588,8.1796,144.55,144.5,15.6106]
[1718505382963,5.62,144.55,144.5,15.6106]
[1718505383567,5.62,144.54,144.5,15.6106]
[1718505385171,7.21114605,144.58,144.52,5.62]
[1718505385379,5.62,144.58,144.53,5.62]
[1718505385582,5.62,144.57,144.52,5.62]
[1718505388376,5.62,144.57,144.52,12.063]
[1718505390804,2.5589,144.6,144.52,12.063]
[1718505391102,5.62,144.58,144.52,12.063]
[1718505391804,5.62,144.57,144.52,6.443]
[1718505392101,5.62,144.56,144.5,15.6106]
[1718505392480,5.62,144.56,144.5,21.2306]
[1718505396701,5.62,144.54,144.5,15.6106]
[1718505397011,5.62,144.53,144.5,15.6106]
[1718505403802,5.62,144.54,144.5,15.6106]
[1718505404322,5.62,144.55,144.5,15.6106]
[1718505406028,5.62,144.54,144.5,15.6106]
[1718505408233,14.86413593,144.56,144.5,15.6106]
[1718505408424,5.62,144.54,144.5,15.6106]
[1718505408632,5.62,144.55,144.5,21.2306]
[1718505408935,7.6771,144.59,144.51,5.62]
[1718505409105,5.62,144.58,144.52,5.62]
[1718505409303,5.62,144.58,144.53,5.62]
[1718505409807,5.62,144.59,144.53,5.62]
[1718505410008,5.62,144.58,144.5,15.6106]
[1718505410227,5.62,144.58,144.53,5.62]
[1718505411332,7.19970205,144.61,144.55,5.62]
[1718505411534,5.62,144.61,144.56,5.62]
[1718505412403,7.6754,144.62,144.56,5.62]
[1718505412637,5.62,144.61,144.55,5.62]
[1718505413515,8.1786,144.61,144.55,5.62]
[1718505414328,5.62,144.6,144.55,5.62]
[1718505415109,2.5586,144.61,144.55,5.62]
[1718505415309,5.62,144.6,144.55,5.62]
[1718505416704,13.63241139,144.64,144.54,21.9387]
[1718505416705,2.5584,144.63,144.56,5.62]
[1718505416908,32.55061139,144.64,144.57,5.62]
[1718505417124,5.62,144.63,144.57,5.62]
[1718505417325,8.1782,144.63,144.57,5.62]
[1718505417936,13.2947,144.63,144.57,5.62]
[1718505418315,20.9694,144.63,144.57,5.62]
[1718505418637,8.1784,144.62,144.56,5.62]
[1718505418936,5.62,144.61,144.56,5.62]
[1718505420340,5.62,144.61,144.55,5.62]
[1718505422616,2.5583,144.63,144.56,5.62]
[1718505422812,25.10362478,144.65,144.57,5.62]
[1718505423021,5.62,144.63,144.58,5.62]
[1718505423439,14.87172478,144.65,144.59,15.3352]
[1718505423641,9.75572478,144.65,144.59,27.3118]
[1718505423942,13.2937,144.65,144.59,27.3118]
[1718505424253,5.62,144.65,144.59,27.3118]
[1718505424451,5.62,144.66,144.6,5.62]
[1718505424738,13.2931,144.66,144.6,5.62]
[1718505425749,13.2931,144.66,144.59,27.3118]
[1718505425750,5.62,144.65,144.59,27.3118]
[1718505426533,5.62,144.64,144.59,21.6918]
[1718505426737,5.62,144.64,144.59,27.3118]
[1718505430118,25.10374543,144.69,144.6,5.62]
[1718505430316,5.62,144.67,144.61,5.62]
[1718505431718,15.3444,144.68,144.61,5.62]
[1718505431922,5.62,144.66,144.61,5.62]
[1718505434347,5.62,144.66,144.6,5.62]
[1718505434556,5.62,144.65,144.59,27.3118]
[1718505435635,5.62,144.63,144.59,21.6918]
[1718505436142,5.62,144.61,144.59,21.6918]
[1718505439527,5.62,144.61,144.59,15.3352]
[1718505442065,0.17,144.64,144.56,22.3256]
[1718505442365,5.62,144.59,144.56,22.3256]
[1718505442741,5.62,144.59,144.56,16.0184]
[1718505443145,13.2954,144.62,144.56,16.0184]
[1718505443350,5.62,144.58,144.56,16.0184]
[1718505447262,5.62,144.57,144.52,27.9456]
[1718505447442,5.62,144.57,144.52,22.3256]
[1718505447649,5.62,144.56,144.52,22.3256]
[1718505450062,5.62,144.55,144.52,22.3256]
[1718505450267,5.62,144.54,144.52,16.0184]
[1718505450474,5.62,144.54,144.49,16.0184]
[1718505450660,5.62,144.52,144.49,16.0184]
[1718505450864,5.62,144.53,144.49,16.0184]
[1718505455750,2.7293,144.57,144.49,16.0184]
[1718505456046,5.62,144.54,144.49,16.0184]
[1718505456253,7.8469,144.59,144.5,5.62]
[1718505456475,5.62,144.56,144.5,5.62]
[1718505459674,5.62,144.55,144.49,21.6384]
[1718505460965,5.62,144.55,144.49,16.0184]
[1718505461186,15.3559,144.57,144.49,16.0184]
[1718505461187,5.62,144.54,144.49,16.0184]
[1718505469987,5.62,144.55,144.49,21.6384]
[1718505470496,5.62,144.55,144.49,16.0184]
[1718505470989,5.62,144.54,144.49,21.6384]
[1718505471165,5.62,144.55,144.49,21.6384]
[1718505478099,5.62,144.55,144.5,0.17]
[1718505478319,5.62,144.58,144.52,5.62]
[1718505480597,5.62,144.57,144.52,5.62]
[1718505480778,5.62,144.57,144.51,5.62]
[1718505481100,5.62,144.57,144.52,0.17]
[1718505481917,7.676,144.61,144.53,28.4285]
[1718505482071,5.62,144.58,144.54,20.0]
[1718505483780,5.62,144.57,144.54,20.0]
[1718505483983,5.62,144.57,144.53,22.8085]
[1718505487905,5.62,144.58,144.53,22.8085]
[1718505488489,25.585,144.62,144.53,22.8085]
[1718505488793,5.62,144.58,144.53,22.8085]
[1718505488998,2.5585,144.62,144.53,22.8085]
[1718505489205,22.48,144.62,144.53,28.4285]
[1718505489590,5.62,144.59,144.54,5.62]
[1718505489793,5.62,144.59,144.53,28.4285]
[1718505490785,30.1553,144.62,144.53,28.4285]
[1718505491492,37.8306,144.62,144.53,28.4285]
[1718505492001,2.5586,144.61,144.53,28.4285]
[1718505496525,7.6758,144.61,144.53,28.4285]
[1718505496702,15.3516,144.61,144.53,28.4285]
[1718505498523,2.5586,144.61,144.54,0.17]
[1718505498708,5.62,144.59,144.54,6.3]
[1718505502104,7.6758,144.61,144.54,6.3]
[1718505502303,5.62,144.59,144.54,6.3]
[1718505507927,17.9084,144.63,144.54,6.3]
[1718505508124,5.62,144.59,144.54,6.3]
[1718505508311,5.62,144.6,144.54,6.3]
[1718505508910,5.62,144.59,144.54,6.3]
[1718505510420,5.62,144.6,144.54,6.3]
[1718505510616,2.5583,144.63,144.54,6.3]
[1718505510835,5.62,144.61,144.55,25.62]
[1718505515036,5.62,144.61,144.55,20.0]
[1718505515240,5.62,144.61,144.55,5.62]
[1718505515536,5.62,144.6,144.55,5.62]
[1718505519938,5.62,144.6,144.54,26.3]
[1718505520142,5.62,144.59,144.54,20.68]
[1718505520930,5.62,144.58,144.54,20.68]
[1718505523744,5.62,144.58,144.54,20.17]
[1718505523951,5.62,144.57,144.54,0.17]
[1718505524125,5.62,144.56,144.54,0.17]
[1718505524332,5.62,144.56,144.53,22.8085]
[1718505525753,7.20513614,144.61,144.53,22.8085]
[1718505525962,5.62,144.59,144.54,25.79]
[1718505526249,5.62,144.6,144.54,25.79]
[1718505527230,5.62,144.59,144.54,25.79]
[1718505531126,5.62,144.59,144.54,20.17]
[1718505532557,5.62,144.59,144.54,25.79]
[1718505538861,5.62,144.59,144.54,20.17]
[1718505542150,5.62,144.58,144.54,20.0]
[1718505542355,28.6461,144.62,144.53,22.8085]
[1718505542356,5.62,144.57,144.53,22.8085]
[1718505544943,5.62,144.56,144.53,22.8085]
[1718505545141,15.3539,144.59,144.49,41.14076183]
[1718505545350,5.62,144.55,144.5,20.0]
[1718505545548,5.62,144.54,144.49,32.28766493]
[1718505545941,5.62,144.53,144.49,32.28766493]
[1718505548256,5.62,144.54,144.49,32.28766493]
[1718505548454,5.62,144.55,144.5,5.62]
[1718505548637,5.62,144.55,144.49,32.28766493]
[1718505548842,5.62,144.54,144.49,37.90766493]
[1718505549432,5.62,144.55,144.49,37.90766493]
[1718505549845,5.62,144.55,144.5,5.62]
[1718505550468,5.62,144.55,144.49,37.90766493]
[1718505550656,5.62,144.54,144.49,22.7018]
[1718505550847,5.62,144.55,144.49,28.3218]
[1718505552762,14.88082485,144.59,144.5,5.62]
[1718505553061,5.62,144.55,144.5,5.62]
[1718505556562,5.62,144.55,144.49,22.7018]
[1718505556742,5.62,144.55,144.49,28.3218]